fUST/lending_fUST_20251023
["ID","MTS","AMOUNT","RATE_DAILY","PERIOD"]
[392115415,1761169842736,-300.0,0.000383,11]
[392115416,1761169842745,-300.0,0.000383,11]
[392115417,1761169842754,-784.42657326,0.00038346,120]
[392115418,1761169842763,-378.75044771,0.00038356,7]
[392115419,1761169842773,-308.83326266,0.00038356,7]
[392115420,1761169842783,-219.66597267,0.00038356,7]
[392115421,1761169842792,-1000.0,0.00038356,120]
[392115422,1761169842801,-544.40158967,0.00038356,7]
[392115423,1761169842810,-647.95067007,0.00038356,7]
[392115424,1761169842820,-262.46704282,0.00038356,7]
[392115425,1761169842830,-224.81314033,0.00038356,7]
[392115426,1761169842839,-472.33344382,0.00038356,7]
[392115427,1761169842849,-307.99473526,0.00038356,7]
[392115428,1761169842858,-483.16155275,0.00038356,7]
[392115429,1761169842869,-342.93635013,0.00038356,7]
[392115430,1761169842879,-534.25321131,0.00038356,7]
[392115431,1761169842888,-400.54875532,0.00038356,7]
[392115432,1761169842898,-500.0,0.00038356,7]
[392115433,1761169842908,-337.16353864,0.00038356,7]
[392115434,1761169842919,-519.93525874,0.00038356,7]
[392115435,1761169842928,-278.32548962,0.00038356,7]
[392115436,1761169842938,-343.23324087,0.00038356,7]
[392115437,1761169842947,-488.81145778,0.00038356,7]
[392115438,1761169842957,-448.03089427,0.00038356,7]
[392115439,1761169842966,-358.57788195,0.00038356,7]
[392115440,1761169842976,-496.78538792,0.00038356,7]
[392115441,1761169842986,-198.68869886,0.00038356,7]
[392115442,1761169842995,-487.91906228,0.00038356,7]
[392115443,1761169843004,-286.66274873,0.00038356,7]
[392115444,1761169843015,-281.70986228,0.00038356,7]
[392115445,1761169843025,-228.42770342,0.00038356,7]
[392115446,1761169843034,-291.75372923,0.00038356,7]
[392115447,1761169843044,-273.17628654,0.00038356,7]
[392115448,1761169843053,-274.32,0.00038356,7]
[392115449,1761169843062,-292.02711664,0.00038356,7]
[392115450,1761169843073,-1000.0,0.00038356,2]
[392115451,1761169843084,-162.30878499,0.00038356,7]
[392115452,1761169843095,-204.22238251,0.00038356,7]
[392115453,1761169843105,-500.0,0.00038356,7]
[392115454,1761169843114,-457.19477797,0.00038356,7]
[392115455,1761169843123,-165.7571726,0.00038356,7]
[392115456,1761169843133,-277.60489427,0.00038356,7]
[392115457,1761169843143,-386.76964962,0.00038356,7]
[392115458,1761169843152,-296.63830845,0.00038356,7]
[392115459,1761169843162,-500.0,0.00038356,7]
[392115460,1761169843173,-500.0,0.00038356,7]
[392115462,1761169843265,-500.0,0.00038356,7]
[392115464,1761169843275,-500.0,0.00038356,7]
[392115465,1761169843285,-500.0,0.00038356,7]
[392115467,1761169843294,-222.15435582,0.00038356,7]
[392115468,1761169843304,-228.31063172,0.00038356,7]
[392115469,1761169843313,-209.67638246,0.00038356,7]
[392115471,1761169843322,-189.0705972,0.00038356,7]
[392115472,1761169843332,-372.42776992,0.00038356,7]
[392115473,1761169843341,-299.27091136,0.00038356,7]
[392115474,1761169843351,-511.12356219,0.00038356,7]
[392115475,1761169843359,-500.0,0.00038356,7]
[392115476,1761169843368,-500.0,0.00038356,7]
[392115477,1761169843377,-500.0,0.00038356,7]
[392115478,1761169843387,-263.59067899,0.00038356,7]
[392115479,1761169843399,-531.93814983,0.00038356,7]
[392115480,1761169843409,-510.19784801,0.00038356,7]
[392115481,1761169843418,-500.0,0.00038356,2]
[392115482,1761169843427,-160.20200319,0.00038356,7]
[392115483,1761169843438,-154.07727595,0.00038356,7]
[392115484,1761169843447,-266.14660862,0.00038356,7]
[392115485,1761169843457,-287.29279828,0.00038356,7]
[392115486,1761169843466,-340.18308612,0.00038356,7]
[392115487,1761169843478,-500.0,0.00038356,7]
[392115488,1761169843487,-416.32949053,0.00038356,7]
[392115489,1761169843496,-362.19474942,0.00038356,7]
[392115490,1761169843506,-327.87010895,0.00038356,7]
[392115491,1761169843515,-189.00685833,0.00038356,7]
[392115492,1761169843525,-200.0,0.00038356,7]
[392115493,1761169843535,-500.0,0.00038356,7]
[392115494,1761169843544,-187.76706673,0.00038356,7]
[392115495,1761169843554,-424.64947043,0.00038356,7]
[392115497,1761169843563,-162.53702627,0.00038356,7]
[392115499,1761169843572,-382.99734782,0.00038356,7]
[392115500,1761169843582,-175.28761425,0.00038356,7]
[392115501,1761169843592,-242.05492627,0.00038356,7]
[392115502,1761169843601,-194.42960717,0.00038356,7]
[392115503,1761169843610,-170.30839777,0.00038356,7]
[392115504,1761169843619,-191.95108613,0.00038356,7]
[392115505,1761169843630,-203.72529291,0.00038356,7]
[392115506,1761169843640,-293.05659124,0.00038356,7]
[392115507,1761169843650,-563.564554,0.00038356,7]
[392115508,1761169843660,-309.60701034,0.00038356,7]
[392115509,1761169843669,-344.28543436,0.00038356,7]
[392115510,1761169843678,-501.67016466,0.00038356,7]
[392115511,1761169843687,-380.52774044,0.00038356,7]
[392115512,1761169843696,-500.0,0.00038356,7]
[392115513,1761169843706,-242.20811233,0.00038356,7]
[392115514,1761169843715,-606.25544683,0.00038356,7]
[392115515,1761169843724,-344.8076518,0.00038356,7]
[392115516,1761169843734,-500.0,0.00038356,7]
[392115517,1761169843743,-156.38528391,0.00038356,7]
[392115518,1761169843752,-296.41562232,0.00038356,7]
[392115519,1761169843762,-367.64494753,0.00038356,7]
[392115520,1761169843771,-362.76359806,0.00038356,7]
[392115521,1761169843780,-500.0,0.00038356,7]
[392115522,1761169843790,-238.83272752,0.00038356,7]
[392115523,1761169843799,-422.20912532,0.00038356,7]
[392115524,1761169843808,-253.865749,0.00038356,7]
[392115525,1761169843818,-201.9189294,0.00038356,7]
[392115526,1761169843827,-349.41750686,0.00038356,7]
[392115527,1761169843837,-168.08342146,0.00038356,7]
[392115529,1761169843846,-171.63672984,0.00038356,7]
[392115530,1761169843856,-500.0,0.00038356,7]
[392115531,1761169843865,-603.81491497,0.00038356,7]
[392115532,1761169843874,-207.2156789,0.00038356,7]
[392115533,1761169843884,-500.0,0.00038356,7]
[392115534,1761169843893,-191.6044713,0.00038356,7]
[392115535,1761169843903,-333.24413904,0.00038356,7]
[392115536,1761169843913,-434.32562797,0.00038356,7]
[392115537,1761169843923,-205.41868019,0.00038356,7]
[392115538,1761169843933,-425.23018006,0.00038356,7]
[392115539,1761169843942,-195.40019124,0.00038356,7]
[392115540,1761169843951,-405.15904943,0.00038356,7]
[392115541,1761169843961,-361.9815455,0.00038356,7]
[392115542,1761169843970,-1000.0,0.00038356,2]
[392115543,1761169843979,-157.36464837,0.00038356,7]
[392115544,1761169843989,-398.66436583,0.00038356,7]
[392115545,1761169843998,-162.06073458,0.00038356,7]
[392115546,1761169844007,-500.0,0.00038356,7]
[392115547,1761169844016,-165.77753778,0.00038356,7]
[392115548,1761169844025,-500.0,0.00038356,7]
[392115549,1761169844034,-228.85356341,0.00038356,7]
[392115550,1761169844044,-162.57504482,0.00038356,7]
[392115551,1761169844055,-176.13463274,0.00038356,7]
[392115552,1761169844064,-511.43516717,0.00038356,7]
[392115553,1761169844073,-351.92241953,0.00038356,7]
[392115554,1761169844084,-282.85812094,0.00038356,7]
[392115555,1761169844096,-329.29971541,0.00038356,7]
[392115556,1761169844106,-419.36870839,0.00038356,7]
[392115557,1761169844117,-426.38365562,0.00038356,7]
[392115558,1761169844127,-344.04213321,0.00038356,7]
[392115559,1761169844138,-397.04027071,0.00038356,7]
[392115560,1761169844148,-163.06299538,0.00038356,7]
[392115561,1761169844158,-401.65619612,0.00038356,7]
[392115562,1761169844169,-411.71166528,0.00038356,7]
[392115563,1761169844181,-500.0,0.00038356,5]
[392115564,1761169844191,-500.0,0.00038356,7]
[392115565,1761169844202,-500.0,0.00038356,7]
[392115566,1761169844212,-641.54126119,0.00038356,7]
[392115567,1761169844222,-500.0,0.00038356,7]
[392115568,1761169844234,-357.58399041,0.00038356,7]
[392115569,1761169844244,-500.0,0.00038356,7]
[392115570,1761169844254,-315.29830206,0.00038356,7]
[392115571,1761169844263,-1772.39,0.00038356,7]
[392115572,1761169844272,-193.14200293,0.00038356,7]
[392115573,1761169844281,-608.96189082,0.00038356,7]
[392115574,1761169844290,-500.0,0.00038356,7]
[392115575,1761169844300,-2978.72,0.00038356,2]
[392115576,1761169844311,-558.1,0.00038356,7]
[392115577,1761169844322,-260.57261445,0.00038356,7]
[392115578,1761169844331,-500.0,0.00038356,7]
[392115579,1761169844341,-450.148172,0.00038356,7]
[392115580,1761169844351,-682.42,0.00038356,7]
[392115581,1761169844360,-3826.67,0.00038356,7]
[392115582,1761169844369,-500.0,0.00038356,7]
[392115583,1761169844380,-500.0,0.00038356,7]
[392115584,1761169844393,-220.0075439,0.00038356,7]
[392115585,1761169844402,-500.0,0.00038356,7]
[392115586,1761169844412,-500.0,0.00038356,7]
[392115587,1761169844422,-500.0,0.00038356,7]
[392115588,1761169844434,-524.38507042,0.00038356,7]
[392115589,1761169844444,-500.0,0.00038356,7]
[392115590,1761169844453,-500.0,0.00038356,7]
[392115591,1761169844463,-180.68899192,0.00038356,7]
[392115592,1761169844473,-291.45329313,0.00038356,7]
[392115593,1761169844484,-1000.0,0.00038356,5]
[392115594,1761169844493,-178.98782184,0.00038356,7]
[392115595,1761169844502,-514.86890228,0.00038356,7]
[392115596,1761169844512,-356.25778686,0.00038356,7]
[392115597,1761169844522,-559.76,0.00038356,7]
[392115598,1761169844532,-500.0,0.00038356,7]
[392115599,1761169844540,-582.11,0.00038356,7]
[392115600,1761169844552,-213.39544201,0.00038356,7]
[392115601,1761169844562,-500.0,0.00038356,7]
[392115602,1761169844571,-241.69439862,0.00038356,7]
[392115603,1761169844580,-2458.23,0.00038356,7]
[392115604,1761169844590,-5615.21,0.00038356,7]
[392115605,1761169844599,-184.86412945,0.00038356,7]
[392115606,1761169844608,-414.98691223,0.00038356,7]
[392115607,1761169844618,-221.92678929,0.00038356,7]
[392115608,1761169844627,-500.0,0.00038356,7]
[392115609,1761169844637,-500.0,0.00038356,7]
[392115610,1761169844647,-500.0,0.00038356,7]
[392115611,1761169844656,-239.81925795,0.00038356,7]
[392115612,1761169844665,-268.89927894,0.00038356,7]
[392115613,1761169844674,-422.00151591,0.00038356,7]
[392115614,1761169844683,-238.27158002,0.00038356,7]
[392115615,1761169844692,-253.27809085,0.00038356,7]
[392115616,1761169844702,-203.51236522,0.00038356,7]
[392115617,1761169844711,-450.13093254,0.00038356,7]
[392115618,1761169844720,-364.24725454,0.00038356,7]
[392115619,1761169844730,-438.88345363,0.00038356,7]
[392115620,1761169844739,-380.03902557,0.00038356,7]
[392115621,1761169844748,-351.52003033,0.00038356,7]
[392115622,1761169844757,-334.81525611,0.00038356,7]
[392115623,1761169844767,-191.99788514,0.00038356,7]
[392115624,1761169844776,-163.93370302,0.00038356,7]
[392115625,1761169844786,-621.36163731,0.00038356,7]
[392115626,1761169844795,-249.64193611,0.00038356,7]
[392115627,1761169844804,-343.88757903,0.00038356,7]
[392115628,1761169844814,-228.00358019,0.00038356,7]
[392115629,1761169844823,-500.0,0.00038356,7]
[392115630,1761169844833,-409.6478748,0.00038356,7]
[392115631,1761169844843,-525.31729372,0.00038356,7]
[392115632,1761169844852,-500.0,0.00038356,7]
[392115633,1761169844861,-366.22367806,0.00038356,7]
[392115634,1761169844871,-500.0,0.00038356,2]
[392115635,1761169844880,-403.08049612,0.00038356,7]
[392115636,1761169844890,-410.03097083,0.00038356,7]
[392115637,1761169844900,-429.18404809,0.00038356,7]
[392115638,1761169844910,-412.92574132,0.00038356,7]
[392115639,1761169844919,-387.22821303,0.00038356,7]
[392115640,1761169844928,-500.0066,0.00038356,7]
[392115641,1761169844938,-390.96741514,0.00038356,7]
[392115642,1761169845018,-500.0,0.00038356,7]
[392115643,1761169845028,-313.82465659,0.00038356,7]
[392115644,1761169845037,-1000.0,0.00038356,2]
[392115645,1761169845047,-500.0,0.00038356,7]
[392115646,1761169845056,-500.0,0.00038356,7]
[392115647,1761169845065,-500.0,0.00038356,7]
[392115648,1761169845075,-401.64944066,0.00038356,7]
[392115649,1761169845084,-500.0,0.00038356,2]
[392115650,1761169845093,-500.0,0.00038356,7]
[392115651,1761169845102,-260.29140891,0.00038356,7]
[392115652,1761169845112,-500.0,0.00038356,7]
[392115653,1761169845121,-390.87608033,0.00038356,7]
[392115654,1761169845131,-378.55095098,0.00038356,7]
[392115655,1761169845140,-500.0,0.00038356,7]
[392115656,1761169845149,-495.08913283,0.00038356,7]
[392115657,1761169845159,-1615.11,0.00038356,7]
[392115658,1761169845168,-500.0,0.00038356,7]
[392115659,1761169845178,-194.38090603,0.00038356,7]
[392115660,1761169845187,-532.38,0.00038356,7]
[392115661,1761169845197,-446.22710663,0.00038356,7]
[392115662,1761169845207,-210.69120597,0.00038356,7]
[392115663,1761169845216,-175.25191809,0.00038356,7]
[392115664,1761169845226,-500.0,0.00038356,7]
[392115665,1761169845237,-500.0,0.00038356,7]
[392115666,1761169845246,-500.0,0.00038356,7]
[392115667,1761169845256,-227.98918754,0.00038356,7]
[392115668,1761169845265,-168.9960293,0.00038356,7]
[392115669,1761169845275,-286.71816532,0.00038356,7]
[392115670,1761169845284,-302.63570934,0.00038356,7]
[392115671,1761169845293,-500.0,0.00038356,7]
[392115672,1761169845303,-500.0,0.00038356,7]
[392115673,1761169845312,-354.74688904,0.00038356,7]
[392115674,1761169845322,-394.13726671,0.00038356,7]
[392115675,1761169845331,-394.23099781,0.00038356,7]
[392115676,1761169845341,-500.0,0.00038356,7]
[392115677,1761169845350,-500.0,0.00038356,7]
[392115678,1761169845360,-229.89190728,0.00038356,7]
[392115679,1761169845369,-504.7780878,0.00038356,7]
[392115680,1761169845379,-500.0,0.00038356,7]
[392115681,1761169845390,-484.81908506,0.00038356,7]
[392115682,1761169845403,-154.52149754,0.00038356,7]
[392115683,1761169845413,-500.0,0.00038356,7]
[392115684,1761169845423,-293.00888997,0.00038356,7]
[392115685,1761169845434,-231.37211874,0.00038356,7]
[392115686,1761169845444,-190.22839087,0.00038356,7]
[392115687,1761169845454,-500.0,0.00038356,7]
[392115688,1761169845465,-396.10167826,0.00038356,7]
[392115689,1761169845477,-158.56603055,0.00038356,7]
[392115690,1761169845488,-193.19471656,0.00038356,7]
[392115691,1761169845497,-500.0,0.00038356,7]
[392115692,1761169845507,-639.56454551,0.00038356,7]
[392115693,1761169845516,-500.0,0.00038356,7]
[392115694,1761169845526,-386.35831016,0.00038356,7]
[392115695,1761169845536,-165.09232385,0.00038356,7]
[392115696,1761169845547,-500.0,0.00038356,7]
[392115697,1761169845556,-500.0,0.00038356,7]
[392115698,1761169845566,-163.07001784,0.00038356,7]
[392115699,1761169845577,-500.0,0.00038356,7]
[392115700,1761169845587,-167.06908319,0.00038356,7]
[392115701,1761169845597,-11953.07,0.00038356,3]
[392115702,1761169845606,-314.89028414,0.00038356,7]
[392115703,1761169845616,-500.0,0.00038356,7]
[392115704,1761169845625,-500.0,0.00038356,7]
[392115705,1761169845636,-272.55342807,0.00038356,7]
[392115706,1761169845647,-500.0,0.00038356,7]
[392115707,1761169845656,-180.49577443,0.00038356,7]
[392115708,1761169845666,-487.21162648,0.00038356,7]
[392115709,1761169845675,-229.96785491,0.00038356,7]
[392115710,1761169845685,-500.0,0.00038356,7]
[392115711,1761169845694,-184.24655123,0.00038356,7]
[392115712,1761169845703,-633.30243733,0.00038356,7]
[392115713,1761169845713,-373.37361793,0.00038356,7]
[392115714,1761169845722,-255.80286213,0.00038356,7]
[392115715,1761169845732,-390.72545126,0.00038356,7]
[392115716,1761169845741,-500.0,0.00038356,7]
[392115718,1761169845750,-264.2734302,0.00038356,7]
[392115719,1761169845760,-334.51586386,0.00038356,7]
[392115720,1761169845769,-500.0,0.00038356,7]
[392115721,1761169845778,-267.83676891,0.00038356,7]
[392115722,1761169845788,-375.42840152,0.00038356,7]
[392115723,1761169845797,-373.93350273,0.00038356,7]
[392115724,1761169845806,-424.21402797,0.00038356,7]
[392115725,1761169845815,-500.0,0.00038356,7]
[392115726,1761169845825,-324.15732312,0.00038356,7]
[392115727,1761169845834,-500.0,0.00038356,7]
[392115728,1761169845844,-551.47,0.00038356,7]
[392115729,1761169845854,-500.0,0.00038356,7]
[392115730,1761169845863,-500.0,0.00038356,7]
[392115731,1761169845872,-182.43747827,0.00038356,7]
[392115732,1761169845884,-242.56184791,0.00038356,7]
[392115733,1761169845893,-264.74661598,0.00038356,7]
[392115734,1761169845903,-505.57007229,0.00038356,7]
[392115735,1761169845912,-500.0,0.00038356,7]
[392115736,1761169845921,-205.63467688,0.00038356,7]
[392115737,1761169845931,-506.1005474,0.00038356,7]
[392115738,1761169845941,-257.34485364,0.00038356,7]
[392115739,1761169845951,-483.26443021,0.00038356,7]
[392115740,1761169845960,-500.0,0.00038356,7]
[392115741,1761169845968,-1336.58,0.00038356,7]
[392115742,1761169845978,-500.0,0.00038356,7]
[392115744,1761169845988,-368.53541687,0.00038356,7]
[392115746,1761169845997,-1853.15,0.00038356,7]
[392115748,1761169846006,-510.20386389,0.00038356,7]
[392115749,1761169846016,-213.38915633,0.00038356,7]
[392115750,1761169846024,-1306.03,0.00038356,7]
[392115751,1761169846033,-500.0,0.00038356,7]
[392115752,1761169846043,-500.0,0.00038356,7]
[392115753,1761169846052,-507.5189185,0.00038356,7]
[392115754,1761169846061,-177.83067305,0.00038356,7]
[392115755,1761169846070,-30464.81,0.00038356,7]
[392115756,1761169846079,-556.18124971,0.00038356,7]
[392115757,1761169846088,-412.47532101,0.00038356,7]
[392115758,1761169846097,-517.23200074,0.00038356,7]
[392115759,1761169846106,-392.6280856,0.00038356,7]
[392115760,1761169846115,-500.0,0.00038356,7]
[392115761,1761169846123,-351.41944257,0.00038356,7]
[392115762,1761169846133,-232.37463565,0.00038356,7]
[392115763,1761169846142,-406.97293367,0.00038356,7]
[392115764,1761169846151,-312.37388576,0.00038356,7]
[392115765,1761169846160,-500.0,0.00038356,7]
[392115766,1761169846169,-500.0,0.00038356,7]
[392115767,1761169846178,-375.72101951,0.00038356,7]
[392115768,1761169846187,-179.14732688,0.00038356,7]
[392115769,1761169846196,-154.67974283,0.00038356,7]
[392115770,1761169846205,-500.0,0.00038356,7]
[392115771,1761169846215,-437.80562931,0.00038356,7]
[392115772,1761169846224,-353.46987684,0.00038356,7]
[392115773,1761169846233,-612.00323449,0.00038356,7]
[392115774,1761169846241,-460.0,0.00038356,7]
[392115776,1761169846250,-518.94876209,0.00038356,7]
[392115778,1761169846259,-501.21275149,0.00038356,7]
[392115780,1761169846269,-692.08,0.00038356,7]
[392115782,1761169846278,-218.95929932,0.00038356,7]
[392115783,1761169846288,-500.0,0.00038356,7]
[392115785,1761169846297,-278.40459678,0.00038356,7]
[392115786,1761169846306,-570.6,0.00038356,7]
[392115787,1761169846316,-500.0,0.00038356,7]
[392115788,1761169846325,-567.93807335,0.00038356,7]
[392115789,1761169846334,-343.20101635,0.00038356,7]
[392115790,1761169846343,-500.0,0.00038356,7]
[392115791,1761169846352,-581.70552696,0.00038356,7]
[392115792,1761169846361,-159.39574441,0.00038356,7]
[392115793,1761169846371,-2782.04,0.00038356,7]
[392115794,1761169846380,-497.23822347,0.00038356,7]
[392115795,1761169846391,-500.0,0.00038356,7]
[392115796,1761169846401,-195.37293387,0.00038356,7]
[392115797,1761169846410,-500.0,0.00038356,7]
[392115798,1761169846420,-323.36713864,0.00038356,7]
[392115799,1761169846431,-319.55389059,0.00038356,7]
[392115801,1761169846440,-483.04423284,0.00038356,7]
[392115802,1761169846450,-218.6469731,0.00038356,7]
[392115803,1761169846459,-382.19504979,0.00038356,7]
[392115804,1761169846470,-500.0,0.00038356,7]
[392115805,1761169846480,-350.92719017,0.00038356,7]
[392115806,1761169846489,-229.71777605,0.00038356,7]
[392115807,1761169846498,-322.89402484,0.00038356,7]
[392115808,1761169846507,-282.39492785,0.00038356,7]
[392115809,1761169846517,-485.1307277,0.00038356,7]
[392115810,1761169846526,-185.59996375,0.00038356,7]
[392115811,1761169846600,-630.65447753,0.00038356,7]
[392115812,1761169846610,-500.0,0.00038356,7]
[392115813,1761169846619,-500.0,0.00038356,7]
[392115814,1761169846628,-188.90382904,0.00038356,7]
[392115815,1761169846638,-500.0,0.00038356,2]
[392115816,1761169846648,-220.56529448,0.00038356,7]
[392115817,1761169846657,-413.09631767,0.00038356,7]
[392115818,1761169846667,-350.4057224,0.00038356,7]
[392115819,1761169846677,-500.0,0.00038356,7]
[392115820,1761169846687,-226.2369735,0.00038356,7]
[392115821,1761169846697,-500.0,0.00038356,7]
[392115823,1761169846706,-1317.53,0.00038356,7]
[392115825,1761169846715,-583.86,0.00038356,7]
[392115827,1761169846725,-186.32057085,0.00038356,7]
[392115829,1761169846734,-500.0,0.00038356,7]
[392115831,1761169846743,-335.06313695,0.00038356,7]
[392115833,1761169846752,-203.08670131,0.00038356,7]
[392115835,1761169846761,-500.0,0.00038356,7]
[392115836,1761169846771,-2573.12,0.00038356,7]
[392115837,1761169846780,-238.75636588,0.00038356,7]
[392115838,1761169846790,-420.52358588,0.00038356,7]
[392115839,1761169846799,-500.0,0.00038356,2]
[392115840,1761169846808,-500.0,0.00038356,7]
[392115841,1761169846817,-457.16100689,0.00038356,7]
[392115842,1761169846827,-500.0,0.00038356,7]
[392115843,1761169846836,-500.0,0.00038356,7]
[392115844,1761169846845,-468.74319843,0.00038356,7]
[392115845,1761169846854,-520.85667089,0.00038356,7]
[392115846,1761169846864,-500.0,0.00038356,7]
[392115847,1761169846873,-500.0,0.00038356,30]
[392115848,1761169846882,-200.0,0.00038373,5]
[392115849,1761169846892,-151.0,0.000384,11]
[392115850,1761169846902,-1222.49,0.000384,7]
[392115851,1761169846911,-168.69300459,0.00038437,7]
[392115852,1761169846920,-160.0,0.00038488,4]
[392115853,1761169846930,-1000.0,0.0003863,120]
[392115854,1761169846939,-500.0,0.0003863,7]
[392115855,1761169846948,-1000.0,0.0003863,2]
[392115856,1761169846957,-500.0,0.0003863,7]
[392115857,1761169846966,-157.09952887,0.0003863,7]
[392115858,1761169846975,-500.0,0.0003863,7]
[392115859,1761169846985,-500.0,0.0003863,7]
[392115860,1761169846994,-500.0,0.0003863,7]
[392115861,1761169847003,-500.0,0.0003863,7]
[392115862,1761169847012,-360.68327025,0.0003863,7]
[392115863,1761169847021,-500.0,0.0003863,7]
[392115864,1761169847031,-500.0,0.0003863,7]
[392115865,1761169847040,-500.0,0.0003863,2]
[392115866,1761169847049,-500.0,0.0003863,7]
[392115867,1761169847058,-200.0,0.0003863,7]
[392115868,1761169847067,-500.0,0.0003863,7]
[392115869,1761169847077,-500.0,0.0003863,7]
[392115870,1761169847087,-500.0,0.0003863,7]
[392115871,1761169847096,-500.0,0.0003863,7]
[392115872,1761169847106,-500.0,0.0003863,7]
[392115873,1761169847116,-500.0,0.0003863,7]
[392115874,1761169847125,-1000.0,0.0003863,2]
[392115875,1761169847136,-500.0,0.0003863,7]
[392115876,1761169847148,-269.16192923,0.0003863,7]
[392115877,1761169847157,-500.0,0.0003863,5]
[392115878,1761169847165,-500.0,0.0003863,7]
[392115879,1761169847175,-298.40476063,0.0003863,7]
[392115880,1761169847184,-500.0,0.0003863,7]
[392115881,1761169847193,-500.0,0.0003863,7]
[392115882,1761169847202,-1772.39,0.0003863,7]
[392115883,1761169847211,-500.0,0.0003863,7]
[392115884,1761169847220,-2978.72,0.0003863,2]
[392115885,1761169847229,-558.1,0.0003863,7]
[392115886,1761169847239,-500.0,0.0003863,7]
[392115887,1761169847249,-682.42,0.0003863,7]
[392115888,1761169847259,-3826.67,0.0003863,7]
[392115889,1761169847268,-500.0,0.0003863,7]
[392115890,1761169847278,-500.0,0.0003863,7]
[392115891,1761169847288,-500.0,0.0003863,7]
[392115892,1761169847297,-500.0,0.0003863,7]
[392115893,1761169847306,-500.0,0.0003863,7]
[392115894,1761169847318,-500.0,0.0003863,7]
[392115895,1761169847328,-552.86611868,0.0003863,7]
[392115896,1761169847338,-1000.0,0.0003863,5]
[392115897,1761169847350,-559.76,0.0003863,7]
[392115898,1761169847359,-500.0,0.0003863,7]
[392115899,1761169847371,-582.11,0.0003863,7]
[392115900,1761169847381,-500.0,0.0003863,7]
[392115901,1761169847394,-2458.23,0.0003863,7]
[392115902,1761169847404,-5615.21,0.0003863,7]
[392115903,1761169847414,-500.0,0.0003863,7]
[392115904,1761169847423,-500.0,0.0003863,7]
[392115905,1761169847433,-500.0,0.0003863,7]
[392115906,1761169847443,-151.0,0.0003863,120]
[392115907,1761169847452,-170.27,0.0003863,7]
[392115908,1761169847462,-500.0,0.0003863,7]
[392115909,1761169847471,-500.0,0.0003863,2]
[392115910,1761169847480,-646.90614232,0.0003863,7]
[392115911,1761169847489,-561.61499378,0.0003863,2]
[392115912,1761169847498,-151.0,0.0003863,2]
[392115913,1761169847508,-151.0,0.0003863,2]
[392115914,1761169847517,-500.0,0.0003863,7]
[392115915,1761169847526,-500.0,0.0003863,7]
[392115916,1761169847535,-500.0,0.0003863,7]
[392115917,1761169847545,-500.0,0.0003863,2]
[392115918,1761169847554,-500.0,0.0003863,7]
[392115919,1761169847563,-500.0,0.0003863,7]
[392115920,1761169847572,-500.0,0.0003863,7]
[392115921,1761169847582,-1615.11,0.0003863,7]
[392115922,1761169847591,-500.0,0.0003863,7]
[392115923,1761169847601,-532.38,0.0003863,7]
[392115924,1761169847610,-444.69651408,0.0003863,7]
[392115925,1761169847620,-151.0,0.0003863,120]
[392115926,1761169847629,-500.0,0.0003863,7]
[392115927,1761169847639,-505.07036697,0.0003863,7]
[392115928,1761169847648,-342.12805525,0.0003863,7]
[392115929,1761169847657,-639.77981286,0.0003863,7]
[392115930,1761169847667,-151.0,0.0003863,120]
[392115931,1761169847677,-500.0,0.0003863,7]
[392115932,1761169847686,-500.0,0.0003863,7]
[392115933,1761169847696,-500.0,0.0003863,7]
[392115934,1761169847706,-500.0,0.0003863,7]
[392115935,1761169847720,-247.31846778,0.0003863,7]
[392115936,1761169847729,-500.0,0.0003863,7]
[392115937,1761169847738,-500.0,0.0003863,7]
[392115938,1761169847750,-500.0,0.0003863,7]